[Event "2026 Biel Blitz Open"]
[Site "Biel, CH"]
[Date "2026.07.19"]
[Round "11"]
[White "Rohrer, Christophe"]
[Black "Kutonov, Yehor"]
[Result "1/2-1/2"]
[Board "27"]
[TimeControl "180+2"]
[WhiteFideId "1326546"]
[BlackFideId "1364804"]
[WhiteElo "2216"]
[BlackElo "1805"]
[WhiteTitle "FM"]
[WhiteClock "0:00:10"]
[BlackClock "0:00:12"]
[Variant "Standard"]
[EndDate "2026.07.19"]
[EndTime "15:25:20"]

1. e4 {[%clk 0:03:03]}  c5 {[%clk 0:03:03]} 2. Nf3 {[%clk 0:03:04]}  d6 {[%clk 0:03:05]} 3. Bc4 {[%clk 0:03:05]}  e6 {[%clk 0:03:04]}
4. O-O {[%clk 0:03:04]}  Nc6 {[%clk 0:03:05]} 5. d3 {[%clk 0:03:00]}  Be7 {[%clk 0:03:04]} 6. Re1 {[%clk 0:03:00]}  Nf6 {[%clk 0:03:05]}
7. c3 {[%clk 0:03:01]}  a6 {[%clk 0:02:59]} 8. a4 {[%clk 0:03:02]}  O-O {[%clk 0:02:53]} 9. Nbd2 {[%clk 0:03:00]}  b6 {[%clk 0:02:49]}
10. Bb3 {[%clk 0:02:48]}  Bb7 {[%clk 0:02:46]} 11. Nf1 {[%clk 0:02:48]}  Rc8 {[%clk 0:02:44]} 12. Ng3 {[%clk 0:02:47]}  Qd7 {[%clk 0:02:39]}
13. h3 {[%clk 0:02:46]}  Rfd8 {[%clk 0:02:40]} 14. d4 {[%clk 0:02:28]}  cxd4 {[%clk 0:02:36]} 15. cxd4 {[%clk 0:02:29]}  d5 {[%clk 0:01:51]}
16. e5 {[%clk 0:02:25]}  Ne8 {[%clk 0:01:52]} 17. Bc2 {[%clk 0:02:04]}  Nb4 {[%clk 0:01:45]} 18. Bb1 {[%clk 0:02:04]}  Nc7 {[%clk 0:01:29]}
19. Bd2 {[%clk 0:01:32]}  a5 {[%clk 0:01:25]} 20. Bc3 {[%clk 0:01:29]}  Nca6 {[%clk 0:01:17]} 21. Nh2 {[%clk 0:01:26]}  Nc6 {[%clk 0:01:15]}
22. Nh5 {[%clk 0:01:20]}  Nab4 {[%clk 0:01:09]} 23. Qg4 {[%clk 0:01:11]}  g6 {[%clk 0:00:58]} 24. Nf6+ {[%clk 0:01:13]}  Bxf6 {[%clk 0:00:55]}
25. exf6 {[%clk 0:01:14]}  Qe8 {[%clk 0:00:51]} 26. Qh4 {[%clk 0:01:13]}  Ba6 {[%clk 0:00:44]} 27. Ng4 {[%clk 0:01:07]}  Bd3 {[%clk 0:00:31]}
28. Re3 {[%clk 0:00:31]}  Bxb1 {[%clk 0:00:31]} 29. Rxb1 {[%clk 0:00:33]}  h5 {[%clk 0:00:21]} 30. Ne5 {[%clk 0:00:32]}  Nxe5 {[%clk 0:00:20]}
31. Rxe5 {[%clk 0:00:33]}  Nc6 {[%clk 0:00:19]} 32. Rg5 {[%clk 0:00:32]}  Kh7 {[%clk 0:00:15]} 33. g4 {[%clk 0:00:33]}  Qf8 {[%clk 0:00:12]}
34. gxh5 {[%clk 0:00:31]}  Qh6 {[%clk 0:00:13]} 35. hxg6+ {[%clk 0:00:32]}  fxg6 {[%clk 0:00:15]} 36. Qg3 {[%clk 0:00:23]}  Rf8 {[%clk 0:00:15]}
37. Bd2 {[%clk 0:00:14]}  Rxf6 {[%clk 0:00:11]} 38. Rd1 {[%clk 0:00:07]}  Qg7 {[%clk 0:00:09]} 39. Qh4+ {[%clk 0:00:08]}  Kg8 {[%clk 0:00:10]}
40. Bf4 {[%clk 0:00:08]}  Rcf8 {[%clk 0:00:11]} 41. Bd6 {[%clk 0:00:09]}  R8f7 {[%clk 0:00:10]} 42. Rd3 {[%clk 0:00:09]}  e5 {[%clk 0:00:07]}
43. dxe5 {[%clk 0:00:09]}  Rf5 {[%clk 0:00:06]} 44. Rdg3 {[%clk 0:00:10]}  Nxe5 {[%clk 0:00:01]} 45. Rxf5 {[%clk 0:00:09]}  Rxf5 {[%clk 0:00:06]}
46. Qd8+ {[%clk 0:00:09]}  Kh7 {[%clk 0:00:07]} 47. Bxe5 {[%clk 0:00:05]}  Qxe5 {[%clk 0:00:08]} 48. Rg4 {[%clk 0:00:04]}  Qe1+ {[%clk 0:00:09]}
49. Kh2 {[%clk 0:00:05]}  Qxf2+ {[%clk 0:00:09]} 50. Rg2 {[%clk 0:00:04]}  Qf4+ {[%clk 0:00:10]} 51. Rg3 {[%clk 0:00:08]}  Qf2+ {[%clk 0:00:11]}
52. Rg2 {[%clk 0:00:10]}  Qf4+ {[%clk 0:00:12]} 1/2-1/2

[Event "2026 Biel Blitz Open"]
[Site "Biel, CH"]
[Date "2026.07.19"]
[Round "11"]
[White "Stevens, Christian"]
[Black "Kolly, Jacques"]
[Result "0-1"]
[Board "28"]
[TimeControl "180+2"]
[WhiteFideId "649090"]
[BlackFideId "1302183"]
[WhiteElo "1912"]
[BlackElo "2203"]
[BlackTitle "FM"]
[WhiteClock "0:00:44"]
[BlackClock "0:00:52"]
[Variant "Standard"]
[EndDate "2026.07.19"]
[EndTime "15:29:00"]

1. e4 {[%clk 0:03:02]}  e6 {[%clk 0:03:04]} 2. d4 {[%clk 0:03:01]}  d5 {[%clk 0:03:05]} 3. Nc3 {[%clk 0:03:02]}  Nf6 {[%clk 0:03:06]}
4. e5 {[%clk 0:03:02]}  Nfd7 {[%clk 0:03:07]} 5. f4 {[%clk 0:03:03]}  c5 {[%clk 0:03:08]} 6. Nf3 {[%clk 0:03:04]}  Nc6 {[%clk 0:03:06]}
7. Be3 {[%clk 0:03:05]}  cxd4 {[%clk 0:03:05]} 8. Nxd4 {[%clk 0:03:05]}  a6 {[%clk 0:03:05]} 9. Nce2 {[%clk 0:03:01]}  Ndb8 {[%clk 0:02:47]}
10. c3 {[%clk 0:02:59]}  Nxd4 {[%clk 0:02:40]} 11. cxd4 {[%clk 0:02:47]}  Nc6 {[%clk 0:02:35]} 12. g3 {[%clk 0:02:45]}  b5 {[%clk 0:02:31]}
13. Bg2 {[%clk 0:02:44]}  Bb7 {[%clk 0:02:30]} 14. O-O {[%clk 0:02:44]}  g6 {[%clk 0:02:31]} 15. g4 {[%clk 0:02:28]}  h5 {[%clk 0:02:17]}
16. h3 {[%clk 0:02:29]}  hxg4 {[%clk 0:02:14]} 17. hxg4 {[%clk 0:02:29]}  Qb6 {[%clk 0:02:16]} 18. f5 {[%clk 0:02:06]}  gxf5 {[%clk 0:02:12]}
19. gxf5 {[%clk 0:02:03]}  O-O-O {[%clk 0:02:13]} 20. Rc1 {[%clk 0:01:57]}  Kb8 {[%clk 0:02:14]} 21. fxe6 {[%clk 0:01:51]}  fxe6 {[%clk 0:02:13]}
22. Qd3 {[%clk 0:01:34]}  Bh6 {[%clk 0:02:02]} 23. Rf6 {[%clk 0:01:13]}  Nxe5 {[%clk 0:01:26]} 24. Qc3 {[%clk 0:01:14]}  Bxe3+ {[%clk 0:01:17]}
25. Qxe3 {[%clk 0:01:15]}  Nc4 {[%clk 0:01:15]} 26. Qg3+ {[%clk 0:01:08]}  Ka8 {[%clk 0:01:11]} 27. b3 {[%clk 0:01:09]}  Nd2 {[%clk 0:01:04]}
28. Nf4 {[%clk 0:00:44]}  Qxd4+ {[%clk 0:00:52]} 0-1

[Event "2026 Biel Blitz Open"]
[Site "Biel, CH"]
[Date "2026.07.19"]
[Round "11"]
[White "Habibi, Ali"]
[Black "Harish, Neeraj"]
[Result "0-1"]
[Board "30"]
[TimeControl "180+2"]
[WhiteFideId "4604393"]
[BlackFideId "30958130"]
[WhiteElo "2116"]
[BlackElo "1920"]
[WhiteTitle "IM"]
[BlackTitle "CM"]
[WhiteClock "0:00:03"]
[BlackClock "0:00:22"]
[Variant "Standard"]
[EndDate "2026.07.19"]
[EndTime "15:29:22"]

1. Nf3 {[%clk 0:03:03]}  d5 {[%clk 0:03:02]} 2. g3 {[%clk 0:03:03]}  Nd7 {[%clk 0:03:01]} 3. Bg2 {[%clk 0:03:04]}  e5 {[%clk 0:03:01]}
4. d3 {[%clk 0:03:05]}  Ngf6 {[%clk 0:03:00]} 5. O-O {[%clk 0:03:03]}  Bd6 {[%clk 0:02:53]} 6. c4 {[%clk 0:03:05]}  c6 {[%clk 0:02:39]}
7. cxd5 {[%clk 0:03:03]}  cxd5 {[%clk 0:02:39]} 8. Nc3 {[%clk 0:03:04]}  O-O {[%clk 0:02:38]} 9. a3 {[%clk 0:03:02]}  Re8 {[%clk 0:02:36]}
10. b4 {[%clk 0:02:54]}  Nf8 {[%clk 0:02:34]} 11. Bg5 {[%clk 0:02:48]}  Be6 {[%clk 0:02:31]} 12. e4 {[%clk 0:02:48]}  d4 {[%clk 0:02:27]}
13. Ne2 {[%clk 0:02:39]}  h6 {[%clk 0:02:26]} 14. Bd2 {[%clk 0:02:37]}  Rc8 {[%clk 0:02:26]} 15. Ne1 {[%clk 0:02:37]}  N6d7 {[%clk 0:02:18]}
16. f4 {[%clk 0:02:36]}  f6 {[%clk 0:02:19]} 17. f5 {[%clk 0:02:36]}  Bf7 {[%clk 0:02:20]} 18. g4 {[%clk 0:02:37]}  a5 {[%clk 0:02:01]}
19. bxa5 {[%clk 0:02:31]}  Nc5 {[%clk 0:02:02]} 20. Bb4 {[%clk 0:02:26]}  Nb3 {[%clk 0:01:50]} 21. Rb1 {[%clk 0:02:21]}  Nxa5 {[%clk 0:01:50]}
22. h4 {[%clk 0:02:05]}  Bxb4 {[%clk 0:01:40]} 23. axb4 {[%clk 0:02:05]}  Nc6 {[%clk 0:01:40]} 24. Nf3 {[%clk 0:01:58]}  Qe7 {[%clk 0:01:36]}
25. Qd2 {[%clk 0:01:50]}  Ra8 {[%clk 0:01:25]} 26. b5 {[%clk 0:01:42]}  Ra2 {[%clk 0:01:22]} 27. Rb2 {[%clk 0:01:32]}  Rxb2 {[%clk 0:01:21]}
28. Qxb2 {[%clk 0:01:33]}  Nb4 {[%clk 0:01:18]} 29. Nc1 {[%clk 0:01:30]}  Rc8 {[%clk 0:01:15]} 30. Ne1 {[%clk 0:01:29]}  Rc3 {[%clk 0:00:55]}
31. g5 {[%clk 0:01:13]}  hxg5 {[%clk 0:00:55]} 32. hxg5 {[%clk 0:01:14]}  fxg5 {[%clk 0:00:56]} 33. Qa1 {[%clk 0:00:55]}  Qc5 {[%clk 0:00:53]}
34. Ne2 {[%clk 0:00:51]}  Rb3 {[%clk 0:00:43]} 35. f6 {[%clk 0:00:38]}  g6 {[%clk 0:00:43]} 36. Nc1 {[%clk 0:00:24]}  Qc3 {[%clk 0:00:28]}
37. Nxb3 {[%clk 0:00:22]}  Qxb3 {[%clk 0:00:29]} 38. Qa8 {[%clk 0:00:07]}  Nxd3 {[%clk 0:00:26]} 39. Qxb7 {[%clk 0:00:06]}  Nf4 {[%clk 0:00:25]}
40. Qe7 {[%clk 0:00:03]}  Qxb5 {[%clk 0:00:22]} 41. Nf3 {[%clk 0:00:03]} 0-1

[Event "2026 Biel Blitz Open"]
[Site "Biel, CH"]
[Date "2026.07.19"]
[Round "11"]
[White "Hirt, Markus"]
[Black "Tkhoruk, Roman"]
[Result "1/2-1/2"]
[Board "32"]
[TimeControl "180+2"]
[WhiteFideId "1302582"]
[BlackFideId "34161589"]
[WhiteElo "1880"]
[BlackElo "2055"]
[WhiteClock "0:00:06"]
[BlackClock "0:00:11"]
[Variant "Standard"]
[EndDate "2026.07.19"]
[EndTime "15:25:30"]

1. e4 {[%clk 0:03:03]}  c6 {[%clk 0:03:04]} 2. Nf3 {[%clk 0:03:03]}  d5 {[%clk 0:03:05]} 3. d3 {[%clk 0:03:03]}  dxe4 {[%clk 0:03:06]}
4. dxe4 {[%clk 0:03:04]}  Qxd1+ {[%clk 0:03:05]} 5. Kxd1 {[%clk 0:03:04]}  Bg4 {[%clk 0:03:00]} 6. Be2 {[%clk 0:03:04]}  Bxf3 {[%clk 0:02:57]}
7. Bxf3 {[%clk 0:02:58]}  Nd7 {[%clk 0:02:57]} 8. Nd2 {[%clk 0:02:54]}  O-O-O {[%clk 0:02:54]} 9. Ke2 {[%clk 0:02:45]}  e5 {[%clk 0:02:54]}
10. Rd1 {[%clk 0:02:33]}  Kc7 {[%clk 0:02:53]} 11. Nc4 {[%clk 0:02:19]}  f6 {[%clk 0:02:53]} 12. a4 {[%clk 0:02:13]}  Bc5 {[%clk 0:02:39]}
13. c3 {[%clk 0:02:08]}  b5 {[%clk 0:02:25]} 14. axb5 {[%clk 0:01:56]}  cxb5 {[%clk 0:02:25]} 15. Ne3 {[%clk 0:01:53]}  Ne7 {[%clk 0:02:20]}
16. Nd5+ {[%clk 0:01:46]}  Nxd5 {[%clk 0:02:06]} 17. Rxd5 {[%clk 0:01:47]}  Kc6 {[%clk 0:01:50]} 18. Bg4 {[%clk 0:01:23]}  Nb8 {[%clk 0:01:32]}
19. Rxd8 {[%clk 0:01:15]}  Rxd8 {[%clk 0:01:33]} 20. Be3 {[%clk 0:01:15]}  Bxe3 {[%clk 0:01:31]} 21. Kxe3 {[%clk 0:01:15]}  Kb6 {[%clk 0:01:32]}
22. Be6 {[%clk 0:01:04]}  a5 {[%clk 0:01:27]} 23. Bd5 {[%clk 0:01:02]}  Na6 {[%clk 0:01:25]} 24. g3 {[%clk 0:00:55]}  Nc7 {[%clk 0:01:18]}
25. Bb3 {[%clk 0:00:54]}  a4 {[%clk 0:01:14]} 26. Bc2 {[%clk 0:00:55]}  Ne6 {[%clk 0:01:12]} 27. h4 {[%clk 0:00:53]}  Nc5 {[%clk 0:01:04]}
28. h5 {[%clk 0:00:50]}  Ka5 {[%clk 0:00:50]} 29. h6 {[%clk 0:00:44]}  g6 {[%clk 0:00:48]} 30. f4 {[%clk 0:00:42]}  b4 {[%clk 0:00:43]}
31. fxe5 {[%clk 0:00:31]}  fxe5 {[%clk 0:00:43]} 32. cxb4+ {[%clk 0:00:26]}  Kxb4 {[%clk 0:00:44]} 33. Rf1 {[%clk 0:00:21]}  Rd7 {[%clk 0:00:41]}
34. Rf6 {[%clk 0:00:20]}  Ka5 {[%clk 0:00:39]} 35. Rf8 {[%clk 0:00:17]}  Rb7 {[%clk 0:00:40]} 36. Rh8 {[%clk 0:00:13]}  Rxb2 {[%clk 0:00:37]}
37. Bxa4 {[%clk 0:00:06]}  Kxa4 {[%clk 0:00:33]} 38. Rxh7 {[%clk 0:00:06]}  Rh2 {[%clk 0:00:33]} 39. Rh8 {[%clk 0:00:05]}  Kb4 {[%clk 0:00:32]}
40. h7 {[%clk 0:00:06]}  Kc4 {[%clk 0:00:33]} 41. Kf3 {[%clk 0:00:06]}  Rh1 {[%clk 0:00:27]} 42. Kg2 {[%clk 0:00:07]}  Rh6 {[%clk 0:00:27]}
43. Kf3 {[%clk 0:00:08]}  Rh5 {[%clk 0:00:16]} 44. Kg4 {[%clk 0:00:09]}  Rh1 {[%clk 0:00:12]} 45. Kg5 {[%clk 0:00:07]}  Nxe4+ {[%clk 0:00:08]}
46. Kxg6 {[%clk 0:00:08]}  Nxg3 {[%clk 0:00:09]} 47. Rc8+ {[%clk 0:00:08]}  Kd3 {[%clk 0:00:09]} 48. h8=Q {[%clk 0:00:07]}  Rxh8 {[%clk 0:00:09]}
49. Rxh8 {[%clk 0:00:08]}  e4 {[%clk 0:00:10]} 50. Re8 {[%clk 0:00:06]}  e3 {[%clk 0:00:10]} 51. Rxe3+ {[%clk 0:00:06]}  Kxe3 {[%clk 0:00:11]} 1/2-1/2

[Event "2026 Biel Blitz Open"]
[Site "Biel, CH"]
[Date "2026.07.19"]
[Round "11"]
[White "Osmani, Xhevdet"]
[Black "Jelicic, Hugo"]
[Result "1-0"]
[Board "33"]
[TimeControl "180+2"]
[WhiteFideId "22104569"]
[BlackFideId "1349040"]
[WhiteElo "1959"]
[BlackElo "1804"]
[WhiteClock "0:01:25"]
[BlackClock "0:00:07"]
[Variant "Standard"]
[EndDate "2026.07.19"]
[EndTime "15:28:54"]

1. d4 {[%clk 0:03:03]}  d5 {[%clk 0:03:03]} 2. c3 {[%clk 0:03:03]}  e6 {[%clk 0:02:57]} 3. Bf4 {[%clk 0:03:04]}  Bd6 {[%clk 0:02:59]}
4. Bg3 {[%clk 0:03:05]}  Nf6 {[%clk 0:02:59]} 5. e3 {[%clk 0:03:06]}  c5 {[%clk 0:02:59]} 6. Nf3 {[%clk 0:03:06]}  Qc7 {[%clk 0:02:54]}
7. Nbd2 {[%clk 0:03:06]}  Nbd7 {[%clk 0:02:53]} 8. Be2 {[%clk 0:03:06]}  O-O {[%clk 0:02:51]} 9. O-O {[%clk 0:03:06]}  Bxg3 {[%clk 0:02:49]}
10. hxg3 {[%clk 0:03:07]}  e5 {[%clk 0:02:48]} 11. dxe5 {[%clk 0:03:06]}  Ng4 {[%clk 0:02:37]} 12. Nb3 {[%clk 0:02:59]}  c4 {[%clk 0:01:36]}
13. Nbd4 {[%clk 0:02:58]}  Ngxe5 {[%clk 0:01:30]} 14. Qc2 {[%clk 0:02:59]}  a6 {[%clk 0:01:22]} 15. Rad1 {[%clk 0:03:00]}  b5 {[%clk 0:01:18]}
16. Ng5 {[%clk 0:02:58]}  Nf6 {[%clk 0:01:12]} 17. Nh3 {[%clk 0:02:30]}  Nc6 {[%clk 0:00:35]} 18. Bf3 {[%clk 0:02:23]}  g6 {[%clk 0:00:30]}
19. Rfe1 {[%clk 0:02:21]}  Nxd4 {[%clk 0:00:30]} 20. exd4 {[%clk 0:02:21]}  Bf5 {[%clk 0:00:29]} 21. Qd2 {[%clk 0:02:19]}  Rfe8 {[%clk 0:00:27]}
22. Qh6 {[%clk 0:02:13]}  Re7 {[%clk 0:00:13]} 23. Qg5 {[%clk 0:02:07]}  Qd6 {[%clk 0:00:13]} 24. Rxe7 {[%clk 0:01:47]}  Qxe7 {[%clk 0:00:13]}
25. Nf4 {[%clk 0:01:48]}  Rd8 {[%clk 0:00:05]} 26. g4 {[%clk 0:01:34]}  Be6 {[%clk 0:00:06]} 27. Re1 {[%clk 0:01:31]}  Kg7 {[%clk 0:00:07]}
28. Qe5 {[%clk 0:01:30]}  Rd7 {[%clk 0:00:07]} 29. g5 {[%clk 0:01:31]}  Qd6 {[%clk 0:00:05]} 30. Qxf6+ {[%clk 0:01:27]}  Kg8 {[%clk 0:00:07]}
31. Nxe6 {[%clk 0:01:25]}  fxe6 {[%clk 0:00:08]} 32. Rxe6 {[%clk 0:01:26]}  Qc7 {[%clk 0:00:07]} 33. Re8# {[%clk 0:01:25]} 1-0

[Event "2026 Biel Blitz Open"]
[Site "Biel, CH"]
[Date "2026.07.19"]
[Round "11"]
[White "Trubini, Timon"]
[Black "Jehnichen, Kai"]
[Result "1-0"]
[Board "34"]
[TimeControl "180+2"]
[WhiteFideId "1347799"]
[BlackFideId "24684333"]
[WhiteElo "1788"]
[BlackElo "1952"]
[WhiteClock "0:00:07"]
[BlackClock "0:01:28"]
[Variant "Standard"]
[EndDate "2026.07.19"]
[EndTime "15:27:56"]

1. e4 {[%clk 0:03:04]}  c5 {[%clk 0:03:02]} 2. d4 {[%clk 0:03:04]}  cxd4 {[%clk 0:02:59]} 3. Nf3 {[%clk 0:03:05]}  Nc6 {[%clk 0:02:59]}
4. Nxd4 {[%clk 0:03:06]}  Qb6 {[%clk 0:03:00]} 5. Nb3 {[%clk 0:03:04]}  Nf6 {[%clk 0:02:58]} 6. Nc3 {[%clk 0:03:05]}  e6 {[%clk 0:02:59]}
7. Bd3 {[%clk 0:03:03]}  a6 {[%clk 0:03:00]} 8. O-O {[%clk 0:03:02]}  d6 {[%clk 0:02:59]} 9. Be3 {[%clk 0:02:58]}  Qc7 {[%clk 0:03:00]}
10. a4 {[%clk 0:02:51]}  Be7 {[%clk 0:03:01]} 11. a5 {[%clk 0:02:51]}  O-O {[%clk 0:03:00]} 12. Kh1 {[%clk 0:02:48]}  e5 {[%clk 0:02:53]}
13. Bg5 {[%clk 0:02:20]}  Be6 {[%clk 0:02:50]} 14. Nd2 {[%clk 0:02:04]}  Nxa5 {[%clk 0:02:49]} 15. Re1 {[%clk 0:01:38]}  Ng4 {[%clk 0:02:43]}
16. Be3 {[%clk 0:01:33]}  Nxe3 {[%clk 0:02:41]} 17. Rxe3 {[%clk 0:01:34]}  Bg5 {[%clk 0:02:42]} 18. Re1 {[%clk 0:01:24]}  b5 {[%clk 0:02:40]}
19. Nf1 {[%clk 0:01:18]}  Nc4 {[%clk 0:02:37]} 20. b3 {[%clk 0:01:08]}  Nb6 {[%clk 0:02:34]} 21. Ne2 {[%clk 0:01:02]}  Kh8 {[%clk 0:02:32]}
22. Neg3 {[%clk 0:00:51]}  Qc5 {[%clk 0:02:31]} 23. Ne3 {[%clk 0:00:49]}  Bxe3 {[%clk 0:02:31]} 24. Rxe3 {[%clk 0:00:50]}  g6 {[%clk 0:02:32]}
25. Qf3 {[%clk 0:00:43]}  Qd4 {[%clk 0:02:27]} 26. Qf6+ {[%clk 0:00:41]}  Kg8 {[%clk 0:02:28]} 27. Rae1 {[%clk 0:00:14]}  Nd7 {[%clk 0:02:29]}
28. Qh4 {[%clk 0:00:13]}  f6 {[%clk 0:02:18]} 29. Qh6 {[%clk 0:00:12]}  Rf7 {[%clk 0:02:18]} 30. h4 {[%clk 0:00:10]}  Qb6 {[%clk 0:02:08]}
31. h5 {[%clk 0:00:10]}  g5 {[%clk 0:02:08]} 32. Nf5 {[%clk 0:00:07]}  Bxf5 {[%clk 0:02:05]} 33. exf5 {[%clk 0:00:06]}  d5 {[%clk 0:02:03]}
34. Rg3 {[%clk 0:00:06]}  Rg7 {[%clk 0:02:02]} 35. Rf1 {[%clk 0:00:05]}  e4 {[%clk 0:01:57]} 36. Be2 {[%clk 0:00:05]}  Qd6 {[%clk 0:01:55]}
37. f4 {[%clk 0:00:04]}  Qf8 {[%clk 0:01:48]} 38. fxg5 {[%clk 0:00:04]}  fxg5 {[%clk 0:01:43]} 39. Rxg5 {[%clk 0:00:05]}  Rxg5 {[%clk 0:01:32]}
40. Qxg5+ {[%clk 0:00:06]}  Qg7 {[%clk 0:01:33]} 41. Qf4 {[%clk 0:00:04]}  Qe5 {[%clk 0:01:32]} 42. Qg4+ {[%clk 0:00:03]}  Kh8 {[%clk 0:01:33]}
43. f6 {[%clk 0:00:04]}  Rg8 {[%clk 0:01:34]} 44. Qxd7 {[%clk 0:00:05]}  Qg5 {[%clk 0:01:31]} 45. Qh3 {[%clk 0:00:05]}  Rf8 {[%clk 0:01:29]}
46. f7 {[%clk 0:00:06]}  d4 {[%clk 0:01:30]} 47. Qe6 {[%clk 0:00:06]}  Qh4+ {[%clk 0:01:31]} 48. Kg1 {[%clk 0:00:06]}  d3 {[%clk 0:01:28]}
49. Qe5+ {[%clk 0:00:07]} 1-0

[Event "2026 Biel Blitz Open"]
[Site "Biel, CH"]
[Date "2026.07.19"]
[Round "11"]
[White "Havolli, Daut"]
[Black "Pinelli, Gian"]
[Result "1-0"]
[Board "35"]
[TimeControl "180+2"]
[WhiteFideId "1315200"]
[BlackFideId "1348710"]
[WhiteElo "1950"]
[BlackElo "1751"]
[WhiteClock "0:00:51"]
[BlackClock "0:00:04"]
[Variant "Standard"]
[EndDate "2026.07.19"]
[EndTime "15:28:43"]

1. d4 {[%clk 0:03:03]}  Nf6 {[%clk 0:03:03]} 2. Bf4 {[%clk 0:03:04]}  d5 {[%clk 0:03:04]} 3. Nc3 {[%clk 0:03:05]}  a6 {[%clk 0:03:05]}
4. f3 {[%clk 0:03:06]}  Bf5 {[%clk 0:03:03]} 5. h4 {[%clk 0:03:03]}  h6 {[%clk 0:03:04]} 6. e3 {[%clk 0:03:03]}  e6 {[%clk 0:03:03]}
7. Bd3 {[%clk 0:03:04]}  Bxd3 {[%clk 0:03:01]} 8. Qxd3 {[%clk 0:03:05]}  Bd6 {[%clk 0:03:00]} 9. Nge2 {[%clk 0:03:04]}  c5 {[%clk 0:02:54]}
10. e4 {[%clk 0:02:57]}  Bxf4 {[%clk 0:02:48]} 11. Nxf4 {[%clk 0:02:56]}  cxd4 {[%clk 0:02:49]} 12. Qxd4 {[%clk 0:02:54]}  Nc6 {[%clk 0:02:49]}
13. Qd3 {[%clk 0:02:49]}  d4 {[%clk 0:02:49]} 14. Nce2 {[%clk 0:02:28]}  e5 {[%clk 0:02:50]} 15. Nh3 {[%clk 0:02:29]}  Nd7 {[%clk 0:02:42]}
16. Nf2 {[%clk 0:02:24]}  Nc5 {[%clk 0:02:43]} 17. Qc4 {[%clk 0:02:20]}  Qe7 {[%clk 0:02:43]} 18. O-O-O {[%clk 0:02:06]}  Rd8 {[%clk 0:02:40]}
19. Nd3 {[%clk 0:02:02]}  Nxd3+ {[%clk 0:02:36]} 20. cxd3 {[%clk 0:01:42]}  Rc8 {[%clk 0:02:31]} 21. Kb1 {[%clk 0:01:42]}  O-O {[%clk 0:02:25]}
22. f4 {[%clk 0:01:33]}  Qd7 {[%clk 0:01:58]} 23. f5 {[%clk 0:01:25]}  Na5 {[%clk 0:01:54]} 24. Qb4 {[%clk 0:01:23]}  Nc6 {[%clk 0:01:49]}
25. Qd2 {[%clk 0:01:22]}  f6 {[%clk 0:01:44]} 26. g4 {[%clk 0:01:22]}  Qe7 {[%clk 0:01:34]} 27. Rdg1 {[%clk 0:01:16]}  Qb4 {[%clk 0:01:30]}
28. Qd1 {[%clk 0:01:06]}  Qe7 {[%clk 0:01:20]} 29. Nc1 {[%clk 0:01:00]}  Nb4 {[%clk 0:01:20]} 30. g5 {[%clk 0:00:57]}  hxg5 {[%clk 0:01:11]}
31. hxg5 {[%clk 0:00:59]}  fxg5 {[%clk 0:00:57]} 32. Qh5 {[%clk 0:01:00]}  Qf6 {[%clk 0:00:41]} 33. Rxg5 {[%clk 0:00:58]}  Rc7 {[%clk 0:00:33]}
34. Qh7+ {[%clk 0:00:51]}  Kf7 {[%clk 0:00:34]} 35. Rg6 {[%clk 0:00:52]}  Rxc1+ {[%clk 0:00:15]} 36. Rxc1 {[%clk 0:00:51]}  Qd8 {[%clk 0:00:03]}
37. Qxg7+ {[%clk 0:00:50]}  Ke8 {[%clk 0:00:04]} 38. Re6+ {[%clk 0:00:51]} 1-0

[Event "2026 Biel Blitz Open"]
[Site "Biel, CH"]
[Date "2026.07.19"]
[Round "11"]
[White "Dai, Wenzhi"]
[Black "Damen, Josephine"]
[Result "1-0"]
[Board "36"]
[TimeControl "180+2"]
[WhiteFideId "8608369"]
[BlackFideId "1074369"]
[WhiteElo "1943"]
[BlackElo "1766"]
[BlackTitle "WCM"]
[WhiteClock "0:00:20"]
[BlackClock "0:00:04"]
[Variant "Standard"]
[EndDate "2026.07.19"]
[EndTime "15:28:36"]

1. e4 {[%clk 0:03:03]}  e5 {[%clk 0:03:04]} 2. Nf3 {[%clk 0:03:04]}  Nc6 {[%clk 0:03:05]} 3. Bb5 {[%clk 0:03:04]}  a6 {[%clk 0:03:06]}
4. Ba4 {[%clk 0:03:05]}  Nf6 {[%clk 0:03:07]} 5. O-O {[%clk 0:03:06]}  Be7 {[%clk 0:03:08]} 6. Re1 {[%clk 0:03:07]}  b5 {[%clk 0:03:09]}
7. Bb3 {[%clk 0:03:08]}  O-O {[%clk 0:03:10]} 8. c3 {[%clk 0:03:09]}  d5 {[%clk 0:03:11]} 9. exd5 {[%clk 0:03:10]}  Nxd5 {[%clk 0:03:12]}
10. Nxe5 {[%clk 0:03:10]}  Nxe5 {[%clk 0:03:13]} 11. Rxe5 {[%clk 0:03:10]}  c6 {[%clk 0:03:14]} 12. d4 {[%clk 0:03:11]}  Bd6 {[%clk 0:03:16]}
13. Re1 {[%clk 0:03:12]}  Qh4 {[%clk 0:03:17]} 14. g3 {[%clk 0:03:13]}  Qh3 {[%clk 0:03:18]} 15. Qd3 {[%clk 0:03:15]}  Bg4 {[%clk 0:02:50]}
16. Qf1 {[%clk 0:03:15]}  Qh5 {[%clk 0:02:51]} 17. Be3 {[%clk 0:03:13]}  Rae8 {[%clk 0:02:51]} 18. Nd2 {[%clk 0:03:13]}  f5 {[%clk 0:02:43]}
19. f4 {[%clk 0:03:01]}  Kh8 {[%clk 0:02:37]} 20. Bxd5 {[%clk 0:02:52]}  cxd5 {[%clk 0:02:38]} 21. Qg2 {[%clk 0:02:52]}  Re6 {[%clk 0:01:46]}
22. Qxd5 {[%clk 0:02:34]}  Rh6 {[%clk 0:01:11]} 23. Qg2 {[%clk 0:02:34]}  Bh3 {[%clk 0:00:56]} 24. Qf2 {[%clk 0:02:26]}  Bg4 {[%clk 0:00:42]}
25. a4 {[%clk 0:02:08]}  Re8 {[%clk 0:00:16]} 26. axb5 {[%clk 0:02:06]}  axb5 {[%clk 0:00:17]} 27. d5 {[%clk 0:01:44]}  Qh3 {[%clk 0:00:06]}
28. Bd4 {[%clk 0:01:25]}  Qh5 {[%clk 0:00:04]} 29. Rxe8+ {[%clk 0:01:05]}  Qxe8 {[%clk 0:00:05]} 30. Ra7 {[%clk 0:00:44]}  Rg6 {[%clk 0:00:05]}
31. Qe3 {[%clk 0:00:38]}  Qf8 {[%clk 0:00:04]} 32. Kf2 {[%clk 0:00:19]}  h5 {[%clk 0:00:05]} 33. h4 {[%clk 0:00:20]}  Bh3 {[%clk 0:00:04]}
34. Nf3 {[%clk 0:00:19]}  Bg4 {[%clk 0:00:04]} 35. Ng5 {[%clk 0:00:20]}  Qb8 {[%clk 0:00:04]} 1-0